bitfinex-derivatives/quotes_ETHF0:USTF0_20240905
["timestamp","ask_amount","ask_price","bid_price","bid_amount"]
[1725555529788,1.17397096,2376.8,2376.6,2.97078]
[1725555530088,0.37792096,2376.7,2376.6,0.42079]
[1725555530291,0.37792096,2376.7,2376.5,0.42079]
[1725555530292,0.79869096,2376.7,2376.5,0.42079]
[1725555530586,0.37792096,2376.5,2376.4,6.17862]
[1725555530791,0.79874096,2376.5,2376.3,0.42084]
[1725555530982,0.37792096,2376.4,2376.3,0.42084]
[1725555532689,0.79874096,2376.4,2376.3,0.42084]
[1725555532878,0.37792096,2376.4,2376.3,0.42084]
[1725555533474,0.37792096,2376.4,2376.1,2.55632404]
[1725555533475,0.79876096,2376.4,2376.2,0.42085]
[1725555533686,3.2078,2376.6,2376.1,0.00632404]
[1725555533687,0.79878096,2376.2,2376.1,0.00632404]
[1725555534581,0.79878096,2376.2,2375.6,0.7493]
[1725555534582,0.42092,2375.9,2375.6,0.7493]
[1725555534776,0.4209,2376.0,2375.8,0.42091]
[1725555534976,0.42088,2376.1,2375.9,0.42089]
[1725555535188,0.37792096,2376.0,2375.9,2.97089]
[1725555535691,0.3898,2376.3,2376.2,0.42086]
[1725555536099,0.76772096,2376.3,2376.2,0.42086]
[1725555537097,0.37792096,2376.3,2376.2,0.42086]
[1725555537589,0.00632404,2376.5,2376.4,0.42082]
[1725555537893,0.00632404,2376.5,2376.4,2.97082]
[1725555537894,0.384245,2376.5,2376.4,2.97082]
[1725555538387,0.384245,2376.5,2376.4,4.02288]
[1725555538781,0.384245,2376.5,2376.4,2.97082]
[1725555539001,0.384245,2376.5,2376.4,0.42082]
[1725555539787,0.384245,2376.5,2376.2,0.3708]
[1725555539990,0.37792096,2376.3,2376.2,0.42086]
[1725555540789,0.00632404,2376.5,2376.4,0.42082]
[1725555541091,0.384245,2376.5,2376.4,2.97082]
[1725555541279,0.384245,2376.5,2376.4,3.36012]
[1725555541486,0.384245,2376.5,2376.4,0.42082]
[1725555542489,0.805045,2376.5,2376.4,0.42082]
[1725555542689,0.384245,2376.5,2376.4,0.42082]
[1725555543396,0.805055,2376.5,2376.4,0.42082]
[1725555543695,0.805055,2376.5,2376.3,3.62863]
[1725555543889,0.37792096,2376.4,2376.3,3.62862]
[1725555544483,0.37792096,2376.4,2376.3,4.68072]
[1725555544688,0.00632404,2376.5,2376.4,1.47288]
[1725555544989,0.384245,2376.5,2376.4,4.76368]
[1725555545900,0.384245,2376.5,2376.4,3.71162]
[1725555547493,0.384245,2376.5,2376.4,4.76368]
[1725555547797,0.384245,2376.5,2376.4,3.71162]
[1725555548001,0.384245,2376.5,2376.4,4.76368]
[1725555548595,0.384245,2376.5,2376.4,3.71162]
[1725555549694,0.384245,2376.5,2376.4,0.42082]
[1725555549894,0.42082,2376.4,2376.3,3.2078]
[1725555550198,1.17854096,2376.4,2376.3,3.2078]
[1725555551099,1.17854096,2376.4,2376.3,3.62864]
[1725555551807,0.75772096,2376.4,2376.3,3.62864]
[1725555552205,0.37792096,2376.4,2376.3,4.68074]
[1725555552601,0.37792096,2376.4,2376.3,5.73284]
[1725555553395,0.37792096,2376.4,2376.3,4.68074]
[1725555553795,0.00632404,2376.5,2376.4,1.47288]
[1725555554005,0.00632404,2376.5,2376.4,8.23088]
[1725555554202,0.42076,2376.8,2376.7,0.42077]
[1725555554710,0.37792096,2376.8,2376.7,0.42077]
[1725555555211,0.79867096,2376.8,2376.7,0.42077]
[1725555555805,0.42078,2376.7,2376.6,0.42078]
[1725555556208,0.79870096,2376.7,2376.6,0.42078]
[1725555556604,0.42079,2376.6,2376.5,0.09367596]
[1725555556907,1.53911096,2376.6,2376.5,0.51447596]
[1725555557420,0.37792096,2376.6,2376.5,1.56648596]
[1725555557709,0.37792096,2376.6,2376.5,0.51447596]
[1725555559505,0.42075,2376.8,2376.7,0.42076]
[1725555559907,0.42079,2376.7,2376.6,0.42078]
[1725555560307,0.79871096,2376.7,2376.6,0.42078]
[1725555560612,1.47276,2376.6,2376.5,0.09367596]
[1725555560803,2.21148096,2376.6,2376.5,0.09367596]
[1725555561512,2.21148096,2376.6,2376.5,0.51447596]
[1725555561711,0.37792096,2376.6,2376.5,0.51447596]
[1725555562011,0.79871096,2376.6,2376.5,0.51447596]
[1725555562210,0.37792096,2376.6,2376.5,0.51447596]
[1725555564115,0.79871096,2376.6,2376.5,0.51447596]
[1725555564413,0.37792096,2376.6,2376.5,0.51447596]
[1725555565913,0.79871096,2376.6,2376.5,0.51447596]
[1725555566112,0.37792096,2376.6,2376.5,0.51447596]
[1725555566917,0.79871096,2376.6,2376.5,0.51447596]
[1725555567217,0.37792096,2376.6,2376.5,0.51447596]
[1725555567718,0.37792096,2376.6,2376.5,1.56648596]
[1725555567919,0.42076,2376.8,2376.7,0.42077]
[1725555568321,0.79868096,2376.8,2376.7,0.42077]
[1725555569724,0.37792096,2376.8,2376.7,0.42077]
[1725555569912,0.79867096,2376.8,2376.7,0.42077]
[1725555572925,0.37792096,2376.8,2376.2,3.2078]
[1725555573119,0.37792096,2376.4,2376.3,4.02294]
[1725555573521,0.42077,2376.8,2376.7,0.42076]
[1725555573827,0.37792096,2376.6,2376.5,1.47277]
[1725555574131,0.37792096,2376.7,2376.6,1.47276]
[1725555574319,0.37792096,2376.7,2376.6,0.81249]
[1725555574520,0.37792096,2376.7,2376.6,1.19489]
[1725555574716,0.37792096,2376.7,2376.6,0.80319]
[1725555576318,3.2078,2377.0,2376.9,0.42073]
[1725555576721,3.58572096,2377.0,2376.9,0.42073]
[1725555577120,3.58572096,2377.0,2376.7,3.9726]
[1725555577121,0.42073,2376.9,2376.8,0.42074]
[1725555577519,0.79865096,2376.9,2376.8,0.42074]
[1725555577724,0.37792096,2376.9,2376.8,0.42074]
[1725555578032,0.79865096,2376.9,2376.8,0.42075]
[1725555578723,0.42076,2376.8,2376.7,0.42076]
[1725555578916,1.15658096,2376.8,2376.7,0.42076]
[1725555579120,0.73582096,2376.8,2376.7,0.42076]
[1725555579726,0.37792096,2376.8,2376.7,0.42076]
[1725555580327,0.79867096,2376.8,2376.7,0.42076]
[1725555581126,0.42079,2376.6,2376.5,0.42078]
[1725555581533,3.62858,2376.7,2376.6,0.42079]
[1725555581719,4.00650096,2376.7,2376.6,0.42079]
[1725555581923,0.79870096,2376.7,2376.6,0.42079]
[1725555582135,0.4208,2376.6,2376.5,0.42079]
[1725555582436,0.42082,2376.5,2376.4,0.42081]
[1725555582635,0.80812,2376.5,2376.4,0.42081]
[1725555582830,0.42083,2376.4,2376.3,0.42082]
[1725555583031,0.37792096,2376.3,2376.0,3.2078]
[1725555583227,0.37792096,2376.1,2375.8,0.42092]
[1725555583427,0.37792096,2375.8,2375.7,0.79456404]
[1725555583629,0.37792096,2375.8,2375.7,0.00632404]
[1725555583932,0.79885096,2375.8,2375.7,0.00632404]
[1725555584166,6.42093,2375.8,2375.7,0.00632404]
[1725555584333,6.42093,2375.8,2375.4,0.3673]
[1725555584334,0.42095,2375.7,2375.4,0.42099]
[1725555584627,0.42095,2375.7,2375.3,0.421]
[1725555584628,0.42096,2375.6,2375.3,0.421]
[1725555584830,7.4174,2375.7,2375.3,0.421]
[1725555584831,0.3596,2375.5,2375.3,0.421]
[1725555585022,0.42093,2375.8,2375.1,6.696]
[1725555585222,0.36587925,2375.7,2375.6,0.42096]
[1725555586325,0.36587925,2375.7,2375.4,0.81129]
[1725555586524,0.36587925,2375.7,2375.5,0.42097]
[1725555586723,0.36587925,2375.7,2375.6,0.42096]
[1725555586926,0.36587925,2375.7,2375.5,0.42097]
[1725555587228,0.36587925,2375.7,2375.6,0.42096]
[1725555588337,0.00627925,2375.7,2375.6,0.42096]
[1725555589225,0.00627925,2375.7,2375.6,4.63056]
[1725555591534,0.00627925,2375.7,2375.6,5.68297]
[1725555591934,0.00627925,2375.7,2375.6,0.42096]
[1725555592733,0.39307925,2375.7,2375.6,0.42096]
[1725555594137,0.00627925,2375.7,2375.6,0.42096]
[1725555597133,0.00627925,2375.7,2375.6,1.47337]
[1725555598132,0.00627925,2375.7,2375.6,2.52578]
[1725555598928,0.00627925,2375.7,2375.6,6.73538]
[1725555601339,0.00627925,2375.7,2375.6,1.47337]
[1725555601539,0.00627925,2375.7,2375.6,5.68297]
[1725555602038,0.00627925,2375.7,2375.6,6.73538]
[1725555603045,3.2078,2376.3,2376.2,0.42086]
[1725555603237,0.42079,2376.6,2376.4,0.42081]
[1725555603435,1.55107,2376.7,2376.3,1.0521]
[1725555603733,0.7659,2376.7,2376.6,0.42079]
[1725555603935,1.0518,2377.0,2376.6,0.42079]
[1725555603936,0.3644,2377.0,2376.9,0.42073]
[1725555604237,0.3832,2377.1,2377.0,0.42071]
[1725555604429,0.3832,2377.1,2376.9,0.42072]
[1725555604638,4.62792,2377.0,2376.7,0.42708061]
[1725555604835,0.42072,2377.0,2376.7,0.00631061]
[1725555605042,4.62794,2376.9,2376.7,0.00631061]
[1725555605239,0.78515,2376.8,2376.7,0.00631061]
[1725555605636,4.99235,2376.8,2376.7,0.00631061]
[1725555606038,4.5716,2376.8,2376.7,0.00631061]
[1725555607847,4.99235,2376.8,2376.7,0.00631061]
[1725555609037,0.80391,2377.1,2376.8,0.42074]
[1725555609242,4.2072,2377.0,2376.7,0.00631061]
[1725555609441,0.42075,2376.8,2376.7,0.00631061]
[1725555609941,4.62795,2376.8,2376.7,0.00631061]
[1725555610150,1.79377,2377.1,2376.7,0.00631061]
[1725555610334,0.42075,2376.8,2376.7,0.00631061]
[1725555611344,4.62795,2376.8,2376.7,0.00631061]
[1725555612247,10.62795,2376.8,2376.7,0.00631061]
[1725555612445,11.67983,2376.8,2376.7,0.00631061]
[1725555612638,14.22983,2376.8,2376.7,0.00631061]
[1725555612838,18.85404347,2376.8,2376.7,0.00631061]
[1725555613643,0.42082,2376.5,2376.3,0.42083]
[1725555613847,0.3789,2376.4,2376.3,0.42083]
[1725555614156,5.00772,2376.4,2376.3,0.42083]
[1725555614350,4.5869,2376.4,2376.3,0.42083]
[1725555614543,0.3789,2376.4,2376.3,0.42083]
[1725555614846,0.38161061,2376.6,2376.5,0.4208]
[1725555616444,0.00631061,2376.6,2376.5,0.4208]
[1725555617346,4.63510061,2376.6,2376.2,1.05215]
[1725555617548,0.42082,2376.5,2376.3,0.42083]
[1725555617942,0.42711061,2376.6,2376.4,0.42082]
[1725555618139,0.42711061,2376.6,2376.5,0.4208]
[1725555618446,0.00631061,2376.6,2376.5,0.4208]
[1725555619635,0.00631061,2376.6,2376.1,4.36100061]
[1725555619839,0.42086,2376.2,2376.1,0.00631061]
[1725555620353,4.62966,2376.2,2376.1,0.00631061]
[1725555620540,4.99286,2376.2,2376.1,0.00631061]
[1725555620945,12.04501,2376.2,2376.1,0.00631061]
[1725555621847,4.99286,2376.2,2376.1,0.00631061]
[1725555622251,0.78406,2376.2,2376.1,0.00631061]
[1725555622446,4.99286,2376.2,2376.1,0.00631061]
[1725555622638,0.3632,2376.2,2376.1,0.42718061]
[1725555623552,0.3632,2376.2,2376.1,0.00631061]
[1725555623749,0.42096,2375.7,2375.4,0.42099]
[1725555624049,0.79077,2375.6,2375.4,0.42099]
[1725555624250,0.7289,2375.6,2375.4,0.42098]
[1725555624443,0.7289,2375.6,2375.5,0.42098]
[1725555625646,0.3699,2375.8,2375.5,0.42098]
[1725555625844,0.7396,2375.9,2375.3,3.60883061]
[1725555626046,0.3805,2375.9,2375.7,0.42094]
[1725555626250,0.42083,2376.4,2375.7,2.55]
[1725555626449,0.42084,2376.3,2375.8,1.1158]
[1725555626644,0.42084,2376.3,2376.0,0.42089]
[1725555626949,0.42086,2376.2,2375.9,0.4209]
[1725555627649,0.42086,2376.2,2376.0,0.42089]
[1725555627855,0.42086,2376.2,2375.9,0.4209]
[1725555628844,0.42086,2376.2,2375.6,0.42095]
[1725555628845,0.42092,2375.9,2375.6,0.42095]
[1725555629049,0.3627,2375.8,2375.7,0.42094]
[1725555629252,0.3627,2375.8,2375.6,0.42095]
[1725555629450,0.78363,2375.8,2375.5,3.62877]
[1725555629650,0.3627,2375.8,2375.6,0.42095]
[1725555629945,2.97083,2376.4,2376.1,0.42086]
[1725555630260,4.3195,2376.5,2376.3,0.42083]
[1725555630460,4.36771,2376.5,2376.3,0.42083]
[1725555630647,3.9469,2376.5,2376.3,0.42083]
[1725555630958,0.3627,2376.5,2376.3,0.42083]
[1725555631355,0.78351,2376.5,2376.2,0.42084]
[1725555631751,0.42083,2376.4,2376.0,0.768]
[1725555631953,0.3627,2376.5,2376.0,0.768]
[1725555632154,0.00631061,2376.6,2376.5,0.093675]
[1725555632357,0.42710061,2376.6,2376.5,0.093675]
[1725555632657,4.21431061,2376.6,2376.5,0.093675]
[1725555632858,4.63510061,2376.6,2376.5,0.093675]
[1725555633648,4.21431061,2376.6,2376.5,0.093675]
[1725555633849,0.42710061,2376.6,2376.5,0.093675]
[1725555634051,0.00631061,2376.6,2376.5,0.093675]
[1725555634354,0.42710061,2376.6,2376.5,0.093675]
[1725555634859,4.63510061,2376.6,2376.5,0.093675]
[1725555635355,9.97211061,2376.6,2376.0,0.768]
[1725555635656,9.97211061,2376.6,2376.0,1.18888]
[1725555635657,0.42085,2376.3,2376.0,1.18888]
[1725555636156,5.76411061,2376.6,2376.0,0.768]
[1725555636363,0.42083,2376.4,2376.2,0.42085]
[1725555637055,0.42083,2376.4,2376.0,0.768]
[1725555637256,0.42083,2376.4,2376.2,0.42085]
[1725555637454,6.81609061,2376.6,2376.0,1.82022]
[1725555637455,6.18491061,2376.6,2376.0,1.82022]
[1725555637657,6.18491061,2376.6,2376.4,0.42082]
[1725555637856,0.4208,2376.5,2376.4,0.093675]
[1725555638049,5.68081,2376.5,2376.4,0.093675]
[1725555638253,11.68081,2376.5,2376.4,0.093675]
[1725555639067,1.05216,2376.2,2375.8,0.3585]
[1725555639266,2.55,2375.9,2375.6,4.146]
[1725555639474,0.42095,2375.7,2375.4,0.42099]
[1725555639769,0.421,2375.4,2375.3,0.00631061]
[1725555640157,4.9926,2375.4,2375.3,0.00631061]
[1725555640358,10.9926,2375.4,2375.3,0.00631061]
[1725555641268,0.362,2375.4,2375.3,0.00631061]
[1725555641468,0.783,2375.4,2375.3,0.00631061]
[1725555641668,13.5426,2375.4,2375.3,0.00631061]
[1725555641970,7.5426,2375.4,2375.3,0.00631061]
[1725555643062,8.5951,2375.4,2375.3,0.00631061]
[1725555643364,7.5426,2375.4,2375.3,0.00631061]
[1725555643763,19.46785285,2375.4,2375.3,0.00631061]
[1725555645682,18.41535285,2375.4,2375.3,0.00631061]
[1725555646393,7.5426,2375.4,2375.3,0.00631061]
[1725555646690,3.333,2375.4,2375.3,0.00631061]
[1725555648089,2.55,2375.6,2375.4,0.42099]
[1725555648282,0.20973143,2375.5,2375.3,0.00631061]
[1725555648482,2.97093,2375.8,2375.3,0.00631061]
[1725555648691,3.9613,2375.9,2375.4,0.42099]
[1725555648692,0.42095,2375.7,2375.4,0.42099]
[1725555648980,7.77114081,2375.9,2375.3,0.42731061]
[1725555649181,0.42096,2375.6,2375.3,0.42731061]
[1725555649386,0.42098,2375.5,2375.3,0.42732061]
[1725555649581,3.62877,2375.6,2375.3,0.42732061]
[1725555650380,0.42098,2375.5,2375.3,0.00631061]
[1725555650982,3.2078,2375.6,2375.3,0.42732061]
[1725555651183,0.42098,2375.5,2375.3,0.00631061]
[1725555651490,3.62877,2375.6,2375.3,0.42732061]
[1725555651796,0.42098,2375.5,2375.3,0.42732061]
[1725555651978,0.42098,2375.5,2375.3,0.00631061]
[1725555652285,0.421,2375.4,2375.3,0.00631061]
[1725555653279,3.62877,2375.6,2375.3,0.42732061]
[1725555653482,0.42098,2375.6,2375.3,0.42732061]
[1725555653691,0.42099,2375.5,2375.3,0.00631061]
[1725555654192,0.42099,2375.5,2375.3,0.42732061]
[1725555654396,0.42096,2375.7,2375.3,0.00631061]
[1725555654692,6.71884081,2375.9,2375.3,0.39361061]
[1725555654895,6.71884081,2375.9,2375.5,0.42097]
[1725555655195,0.42095,2375.7,2375.5,0.42097]
[1725555655386,6.71884081,2375.9,2375.5,0.42097]
[1725555655698,0.42095,2375.7,2375.5,0.42097]
[1725555657900,3.60237,2375.7,2375.3,0.39361061]
[1725555658095,3.60237,2375.7,2375.5,0.42098]
[1725555658096,2.97096,2375.7,2375.5,0.42098]
[1725555659096,0.42096,2375.6,2375.4,0.42099]
[1725555659485,0.42096,2375.6,2375.5,0.3562]
[1725555660691,2.97095,2375.7,2375.5,0.77717]
[1725555660903,3.2078,2376.2,2375.5,5.61825]
[1725555661196,3.2078,2376.2,2376.1,0.42087]
[1725555661699,0.42083,2376.4,2376.2,0.42085]
[1725555662296,0.42084,2376.3,2376.1,0.42086]
[1725555662698,1.05208,2376.4,2375.9,1.129]
[1725555662996,0.42086,2376.2,2376.0,0.42088]
[1725555663209,0.42084,2376.3,2376.1,0.42086]
[1725555663495,0.00631061,2376.6,2376.5,0.4208]
[1725555663704,0.00631061,2376.6,2376.4,0.42082]
[1725555663890,0.00631061,2376.6,2376.0,1.05223]
[1725555664090,0.42710061,2376.6,2376.4,0.42081]
[1725555664296,0.42084,2376.3,2375.9,1.129]
[1725555664493,0.42083,2376.4,2376.1,0.42087]
[1725555664907,0.42084,2376.3,2376.1,0.42087]
[1725555665200,0.42086,2376.2,2376.0,0.42089]
[1725555665402,0.42085,2376.3,2376.1,0.42087]
[1725555665894,0.42086,2376.2,2376.0,0.42088]
[1725555666097,0.42086,2376.2,2376.0,0.42089]
[1725555666497,2.55,2376.3,2375.9,0.7595]
[1725555666693,0.00631061,2376.6,2376.5,0.4208]
[1725555666895,0.00631061,2376.6,2376.5,4.68061]
[1725555667208,0.00631061,2376.6,2376.5,13.8366]
[1725555667401,0.00631061,2376.6,2376.5,14.2252]
[1725555667602,0.00631061,2376.6,2376.5,15.27721]
[1725555668203,0.00631061,2376.6,2376.5,9.27721]
[1725555668802,0.00631061,2376.6,2376.5,10.32922]
[1725555669509,0.00631061,2376.6,2376.5,16.32922]
[1725555669705,0.62909193,2377.3,2377.2,0.42068]
[1725555670197,0.62909193,2377.3,2376.9,3.2078]
[1725555670198,0.42068,2377.2,2376.9,3.5941]
[1725555670403,2.75842193,2377.3,2376.9,3.2078]
[1725555670599,2.75842193,2377.3,2376.9,3.62852]
[1725555670909,0.4207,2377.1,2377.0,0.42071]
[1725555671214,0.4207,2377.1,2376.9,3.63483061]
[1725555671409,0.4207,2377.1,2376.9,3.21411061]
[1725555671608,0.42071,2377.0,2376.9,3.63483061]
[1725555671915,0.4207,2377.1,2377.0,0.42071]
[1725555672112,2.97698061,2377.3,2377.1,0.42068]
[1725555672407,2.97698061,2377.3,2377.2,0.42068]
[1725555672408,0.42698061,2377.3,2377.2,0.42068]
[1725555672609,0.00631061,2377.3,2377.2,0.42068]
[1725555673702,0.4207,2377.1,2377.0,0.7908]
[1725555674015,0.42068,2377.2,2377.1,0.42069]
[1725555675017,0.4207,2377.1,2377.0,0.4207]
[1725555675310,0.39941061,2377.3,2376.9,3.21411061]
[1725555675516,0.42069,2377.2,2377.1,0.4207]
[1725555675705,0.39941061,2377.3,2377.2,0.42068]
[1725555675706,0.00631061,2377.3,2377.2,0.42068]
[1725555676216,0.42697061,2377.3,2377.2,0.42068]
[1725555676514,0.4207,2377.1,2376.9,3.21411061]
[1725555676705,0.4207,2377.1,2377.0,0.42071]
[1725555677014,0.4207,2377.1,2377.0,0.4207]
[1725555677314,0.7772,2377.2,2377.1,0.4207]
[1725555677618,0.7772,2377.2,2377.0,0.42071]
[1725555677619,0.4207,2377.1,2377.0,0.42071]
[1725555677801,0.3565,2377.2,2376.9,3.21411061]
[1725555678008,0.42071,2377.0,2376.9,3.63483061]
[1725555678406,0.42071,2377.0,2376.9,3.21411061]
[1725555678613,5.6797,2377.0,2376.9,0.00631061]
[1725555678910,5.6797,2377.0,2376.9,3.21411061]
[1725555678911,4.62791,2377.0,2376.9,3.21411061]
[1725555679108,0.3565,2377.2,2376.9,3.21411061]
[1725555679308,0.77718,2377.2,2377.1,0.4207]
[1725555679709,0.42071,2377.1,2377.0,0.4207]
[1725555679915,0.42071,2377.0,2376.9,3.63483061]
[1725555684112,1.80101,2377.2,2377.1,0.4207]
[1725555684113,0.3565,2377.2,2377.1,0.4207]
[1725555684423,0.00631061,2377.3,2377.2,0.42068]
[1725555684621,0.42698061,2377.3,2377.2,0.42068]
[1725555684823,0.42071,2377.0,2376.9,3.21411061]
[1725555685017,1.4725,2377.0,2376.9,3.21411061]
[1725555685316,0.42071,2377.0,2376.9,0.00631061]
[1725555685619,1.0517,2377.2,2377.1,0.42068]
[1725555685620,0.42069,2377.2,2377.1,0.42068]
[1725555686626,0.42698061,2377.3,2377.2,0.42068]
[1725555687919,0.42068,2377.2,2377.1,0.42068]
[1725555688421,0.42698061,2377.3,2377.2,0.42068]
[1725555688613,0.42068,2377.2,2377.1,0.42068]
[1725555689922,0.42698061,2377.3,2377.2,0.42068]
[1725555690519,0.42069,2377.2,2377.1,0.42068]
[1725555692525,0.4207,2377.1,2377.0,3.2078]
[1725555693427,0.4207,2377.1,2377.0,3.6285]
[1725555693633,0.42069,2377.2,2377.1,0.4207]
[1725555694125,0.42699061,2377.3,2377.2,0.42068]
[1725555695618,0.42699061,2377.3,2377.1,0.3825]
[1725555695619,0.4207,2377.1,2377.0,3.2078]
[1725555696016,0.4207,2377.2,2377.1,0.42069]
[1725555696315,0.42069,2377.2,2377.1,0.42069]
[1725555696931,0.42069,2377.2,2377.1,0.79819]
[1725555698331,0.42069,2377.2,2377.1,0.3775]
[1725555698721,0.42069,2377.2,2377.1,0.4207]
[1725555699323,0.4207,2377.1,2377.0,3.6285]
[1725555701628,0.42069,2377.2,2377.1,0.42068]
[1725555702028,0.00631061,2377.3,2377.2,0.42068]
[1725555702422,0.00631061,2377.3,2377.2,5.67878]
[1725555704134,0.00631061,2377.3,2377.2,6.73048]
[1725555704335,0.3642,2377.7,2377.6,0.42061]
[1725555704630,0.42064,2377.4,2377.3,0.3736]
[1725555704826,0.42064,2377.4,2377.3,0.79426]
[1725555705831,0.42064,2377.4,2377.3,0.3736]
[1725555705832,1.47226,2377.4,2377.3,0.3736]
[1725555706038,0.42064,2377.4,2377.3,0.3736]
[1725555706335,0.42064,2377.5,2377.4,0.42064]
[1725555707235,0.42064,2377.4,2377.3,0.79425]
[1725555707944,1.05163,2377.4,2377.2,0.42067]
[1725555708133,0.42067,2377.3,2377.2,0.42067]
[1725555708637,0.3601,2377.6,2377.5,0.42063]
[1725555708840,0.7848,2377.7,2377.6,0.42061]
[1725555709228,0.42062,2377.6,2377.5,0.42061]
[1725555709438,0.42066,2377.4,2377.3,0.42065]
[1725555710138,0.42067,2377.3,2377.2,0.42067]
[1725555710730,4.80560447,2377.4,2377.3,0.42066]
[1725555710932,9.74206329,2377.5,2377.4,0.42064]
[1725555711137,4.80558447,2377.5,2377.4,0.42064]
[1725555711437,0.42063,2377.5,2377.4,0.42064]
[1725555711933,4.40667058,2377.5,2377.4,1.47226]
[1725555713036,4.40667058,2377.5,2377.4,4.68006]
[1725555713339,4.40667058,2377.5,2377.4,3.62844]
[1725555713836,0.42063,2377.5,2377.4,3.2078]
[1725555714042,5.35710882,2377.5,2377.3,0.42065]
[1725555714232,5.35711882,2377.4,2377.3,0.42065]
[1725555714938,4.93647882,2377.4,2377.3,0.42066]
[1725555716442,4.40904544,2377.4,2377.3,0.42066]
[1725555717740,4.40904544,2377.4,2377.3,1.47232]
[1725555717949,0.78479,2377.7,2377.3,6.7564]
[1725555718144,0.3642,2377.7,2377.6,0.42061]
[1725555718347,0.42056,2377.9,2377.8,0.42057]
[1725555718543,9.34552426,2378.0,2377.9,0.42056]
[1725555718544,5.22269544,2378.0,2377.9,0.42056]
[1725555718841,0.81364,2378.0,2377.9,0.42056]
[1725555719435,0.42056,2377.9,2377.8,0.42056]
[1725555719638,0.81365,2378.0,2377.9,0.42056]
[1725555720743,0.3931,2378.0,2377.9,0.42056]
[1725555720947,0.3931,2378.0,2377.8,0.42056]
[1725555721143,0.42057,2377.8,2377.7,0.80808]
[1725555721348,0.42057,2377.9,2377.7,0.80808]
[1725555721534,0.42057,2377.8,2377.7,0.42058]
[1725555721735,0.42064,2377.4,2377.3,3.2078]
[1725555722247,0.80684,2377.4,2377.3,3.2078]
[1725555722442,1.43783,2377.4,2377.0,0.7848]
[1725555722742,2.9362,2377.4,2376.9,0.00631061]
[1725555723045,0.42071,2377.0,2376.9,0.00631061]
[1725555723941,0.42071,2377.0,2376.9,0.42704061]
[1725555724150,0.42071,2377.0,2376.9,0.00631061]
[1725555724539,0.3654,2377.1,2376.9,0.00631061]
[1725555724842,0.42071,2377.1,2376.9,0.42704061]
[1725555725037,0.42071,2377.0,2376.9,0.00631061]
[1725555725345,0.42071,2377.1,2376.9,0.42704061]
[1725555725545,1.41136,2377.3,2377.0,0.42071]
[1725555725745,0.42068,2377.2,2377.0,0.42071]
[1725555725949,0.42068,2377.2,2377.1,0.3732]
[1725555726651,0.42068,2377.2,2377.1,0.7939]
[1725555726845,0.42068,2377.2,2377.1,0.3732]
[1725555727148,0.42071,2377.0,2376.9,0.42703061]
[1725555727650,0.42071,2377.1,2376.9,0.42703061]
[1725555728149,0.3597,2377.3,2376.9,0.00631061]
[1725555728347,0.3597,2377.3,2377.0,2.55]
[1725555728548,0.42069,2377.2,2377.0,2.55]
[1725555728743,0.3597,2377.3,2377.2,0.42068]
[1725555728943,0.42066,2377.3,2377.2,0.42068]
[1725555729145,0.80684,2377.4,2377.3,0.42066]
[1725555731250,0.42066,2377.3,2377.1,3.98528]
[1725555731552,0.42066,2377.3,2377.2,0.42068]
[1725555731748,0.80686,2377.4,2377.3,0.42066]
[1725555731949,0.3862,2377.4,2377.3,0.42066]
[1725555732152,0.78067,2377.8,2377.7,0.42059]
[1725555732547,0.3601,2377.8,2377.7,0.42059]
[1725555733346,4.40904544,2377.8,2377.7,0.42059]
[1725555733547,9.34552426,2378.0,2377.9,0.42056]
[1725555733754,5.21324544,2378.1,2378.0,0.42054]
[1725555733958,0.3829,2378.1,2378.0,0.42054]
[1725555734149,4.40904544,2378.2,2377.9,5.7578]
[1725555734349,0.3605,2378.5,2378.1,2.55]
[1725555734554,0.42048,2378.4,2378.0,1.1272]
[1725555734751,0.42049,2378.3,2378.1,0.42051]
[1725555734958,5.15244544,2378.5,2378.0,0.79223]
[1725555735149,4.40904544,2378.4,2378.0,0.79223]
[1725555735459,0.42051,2378.2,2378.0,0.3717]
[1725555735659,0.42051,2378.2,2378.0,0.79223]
[1725555735957,5.15244544,2378.5,2378.0,0.3717]
[1725555736164,0.42047,2378.4,2378.2,0.42049]
[1725555736657,1.16386,2378.5,2378.2,0.42048]
[1725555736847,0.7434,2378.5,2378.3,0.42048]
[1725555737053,4.82944544,2378.8,2378.4,6.54137]
[1725555737256,0.78042,2378.7,2378.4,3.5709]
[1725555737457,0.78042,2378.7,2378.4,0.3631]
[1725555737956,0.78042,2378.7,2378.4,0.78357]
[1725555737957,0.36,2378.7,2378.4,0.78357]
[1725555738257,0.36,2378.7,2378.4,6.54136]
[1725555738461,0.36,2378.7,2378.4,3.33356]
[1725555738961,0.36,2378.7,2378.5,0.42044]
[1725555739255,0.36,2378.7,2378.4,3.33356]
[1725555739462,0.36,2378.7,2378.4,0.3631]
[1725555739463,0.78042,2378.7,2378.4,0.3631]
[1725555739660,0.36,2378.7,2378.4,0.3631]
[1725555739958,0.78042,2378.7,2378.4,0.78356]
[1725555740262,0.36,2378.7,2378.4,0.3631]
[1725555740457,0.36,2378.7,2378.5,0.42045]
[1725555740759,0.36,2378.7,2378.5,0.42044]
[1725555741459,0.36,2378.7,2378.4,3.99136]
[1725555741656,0.78041,2378.7,2378.4,3.99136]
[1725555742162,0.78041,2378.7,2378.4,3.5709]
[1725555742359,0.42043,2378.6,2378.4,3.5709]
[1725555742559,1.05112,2378.6,2378.1,0.00631061]
[1725555742759,0.736,2378.5,2378.1,0.00631061]
[1725555743063,0.3597,2378.5,2378.3,0.42048]
[1725555743263,0.3597,2378.5,2378.2,5.7578]
[1725555743451,0.78015,2378.5,2378.3,0.3787]
[1725555743650,0.78015,2378.5,2378.3,0.79918]
[1725555743651,0.3597,2378.5,2378.3,0.79918]
[1725555744054,0.78043,2378.7,2378.3,0.79918]